fUSD/lending_fUSD_20241108
["ID","MTS","AMOUNT","RATE_DAILY","PERIOD"]
[341612565,1731033037918,-510.06849929,0.00027397,2]
[341612566,1731033037927,-500.0,0.00027397,2]
[341612567,1731033037937,-537.5969875,0.00027397,2]
[341612568,1731033037946,-500.0,0.00027397,2]
[341612569,1731033037955,-151.0,0.00027397,7]
[341612570,1731033037965,-596.27667797,0.00027397,2]
[341612571,1731033037974,-151.0,0.00027397,7]
[341612572,1731033037983,-514.38341426,0.00027397,2]
[341612573,1731033037993,-500.0,0.00027397,2]
[341612574,1731033038013,-151.0,0.00027397,7]
[341612576,1731033038023,-178.081802,0.00027397,7]
[341612578,1731033038033,-622.62,0.00027397,2]
[341612579,1731033038042,-151.0,0.00027397,7]
[341612580,1731033038052,-178.081802,0.00027397,7]
[341612581,1731033038062,-178.081802,0.00027397,7]
[341612582,1731033038072,-151.0,0.00027397,7]
[341612583,1731033038084,-178.081802,0.00027397,7]
[341612584,1731033038093,-151.0,0.00027397,7]
[341612585,1731033038103,-1179.57,0.00027397,2]
[341612586,1731033038112,-178.081802,0.00027397,7]
[341612587,1731033038122,-500.0,0.00027397,2]
[341612588,1731033038131,-508.30167893,0.00027397,2]
[341612589,1731033038141,-216.706612,0.00027397,7]
[341612590,1731033038150,-178.081802,0.00027397,7]
[341612591,1731033038162,-178.081802,0.00027397,7]
[341612592,1731033038173,-505.55959022,0.00027397,2]
[341612593,1731033038182,-178.081802,0.00027397,7]
[341612594,1731033038192,-503.60886239,0.00027397,2]
[341612595,1731033038201,-178.081802,0.00027397,7]
[341612596,1731033038210,-178.081802,0.00027397,7]
[341612597,1731033038220,-178.081802,0.00027397,7]
[341612598,1731033038230,-531.52,0.00027397,2]
[341612599,1731033038239,-178.081802,0.00027397,7]
[341612600,1731033038250,-178.081802,0.00027397,7]
[341612601,1731033038260,-178.081802,0.00027397,7]
[341612602,1731033038270,-544.80612839,0.00027397,2]
[341612603,1731033038279,-178.081802,0.00027397,7]
[341612604,1731033038289,-178.081802,0.00027397,7]
[341612605,1731033038298,-178.081802,0.00027397,7]
[341612606,1731033038308,-500.0,0.00027397,2]
[341612607,1731033038317,-178.081802,0.00027397,7]
[341612608,1731033038326,-178.081802,0.00027397,7]
[341612609,1731033038336,-500.0,0.00027397,2]
[341612610,1731033038345,-178.081812,0.00027397,7]
[341612611,1731033038354,-500.0,0.00027397,2]
[341612612,1731033038363,-515.2024035,0.00027397,2]
[341612613,1731033038372,-606.31,0.00027397,2]
[341612614,1731033038382,-516.93,0.00027397,2]
[341612615,1731033038392,-534.4463473,0.00027397,2]
[341612616,1731033038401,-502.4320243,0.00027397,2]
[341612617,1731033038410,-500.0,0.00027397,2]
[341612618,1731033038419,-500.0,0.00027397,2]
[341612619,1731033038428,-506.60063903,0.00027397,2]
[341612620,1731033038437,-2520.15,0.00027397,2]
[341612621,1731033038446,-500.0,0.00027397,2]
[341612622,1731033038457,-513.89140961,0.00027397,2]
[341612623,1731033038466,-503.43467251,0.00027397,2]
[341612624,1731033038475,-513.24,0.00027397,2]
[341612625,1731033038485,-151.0,0.00027397,7]
[341612626,1731033038496,-151.0,0.00027397,7]
[341612627,1731033038506,-548.84,0.00027397,2]
[341612628,1731033038515,-151.0,0.00027397,7]
[341612629,1731033038525,-500.0,0.00027397,2]
[341612630,1731033038535,-151.0,0.00027397,7]
[341612631,1731033038545,-514.74902481,0.00027397,2]
[341612632,1731033038554,-151.0,0.00027397,7]
[341612633,1731033038563,-151.0,0.00027397,7]
[341612634,1731033038572,-156.366978,0.00027397,7]
[341612635,1731033038581,-500.0,0.00027397,2]
[341612636,1731033038591,-506.52984112,0.00027397,2]
[341612637,1731033038600,-529.72133145,0.00027397,2]
[341612638,1731033038610,-500.0,0.00027397,2]
[341612639,1731033038619,-500.0,0.00027397,2]
[341612640,1731033038628,-599.46,0.00027397,2]
[341612642,1731033038637,-500.0,0.00027397,2]
[341612644,1731033038648,-542.46,0.00027397,2]
[341612645,1731033038664,-510.44182451,0.00027397,2]
[341612646,1731033038674,-151.0,0.00027397,7]
[341612647,1731033038683,-511.32,0.00027397,2]
[341612648,1731033038693,-151.0,0.00027397,7]
[341612649,1731033038702,-155.632087,0.00027397,7]
[341612650,1731033038711,-500.0,0.00027397,2]
[341612651,1731033038721,-500.0,0.00027397,2]
[341612652,1731033038730,-498.96773104,0.00027397,2]
[341612653,1731033038740,-520.23,0.00027397,2]
[341612654,1731033038750,-500.0,0.00027397,2]
[341612655,1731033038759,-500.0,0.00027397,2]
[341612656,1731033038769,-500.0,0.00027397,2]
[341612657,1731033038778,-504.86778477,0.00027397,2]
[341612658,1731033038789,-500.0,0.00027397,2]
[341612659,1731033038798,-732.11,0.00027397,2]
[341612660,1731033038808,-151.0,0.00027397,7]
[341612661,1731033038817,-506.1387548,0.00027397,2]
[341612662,1731033038826,-151.0,0.00027397,7]
[341612663,1731033038835,-151.0,0.00027397,7]
[341612664,1731033038844,-151.0,0.00027397,7]
[341612665,1731033038854,-151.0,0.00027397,7]
[341612666,1731033038863,-500.0,0.00027397,2]
[341612667,1731033038872,-151.0,0.00027397,7]
[341612668,1731033038882,-502.54688704,0.00027397,2]
[341612669,1731033038891,-500.0,0.00027397,2]
[341612670,1731033038900,-151.0,0.00027397,7]
[341612671,1731033038911,-151.0,0.00027397,7]
[341612672,1731033038920,-151.0,0.00027397,7]
[341612673,1731033038929,-151.0,0.00027397,7]
[341612674,1731033038939,-505.25031197,0.00027397,2]
[341612675,1731033038948,-151.0,0.00027397,7]
[341612676,1731033038957,-151.0,0.00027397,7]
[341612677,1731033038966,-151.0,0.00027397,7]
[341612678,1731033038975,-151.0,0.00027397,7]
[341612679,1731033038985,-507.34,0.00027397,2]
[341612680,1731033038995,-151.0,0.00027397,7]
[341612681,1731033039009,-151.0,0.00027397,7]
[341612682,1731033039018,-151.0,0.00027397,7]
[341612683,1731033039030,-500.0,0.00027397,2]
[341612684,1731033039040,-151.0,0.00027397,7]
[341612685,1731033039052,-206.700087,0.00027397,7]
[341612686,1731033039062,-185.687486,0.00027397,7]
[341612687,1731033039072,-500.0,0.00027397,2]
[341612688,1731033039083,-500.0,0.00027397,2]
[341612689,1731033039095,-500.0,0.00027397,2]
[341612690,1731033039105,-500.0,0.00027397,2]
[341612691,1731033039116,-501.21175852,0.00027397,2]
[341612692,1731033039126,-505.69,0.00027397,2]
[341612693,1731033039135,-500.0,0.00027397,2]
[341612694,1731033039144,-500.0,0.00027397,2]
[341612695,1731033039154,-500.0,0.00027397,2]
[341612696,1731033039164,-500.0,0.00027397,2]
[341612697,1731033039175,-500.0,0.00027397,2]
[341612698,1731033039184,-151.0,0.00027397,7]
[341612699,1731033039195,-170.357283,0.00027397,7]
[341612700,1731033039204,-920.8,0.00027397,2]
[341612701,1731033039213,-500.0,0.00027397,2]
[341612702,1731033039223,-503.39,0.00027397,2]
[341612703,1731033039231,-500.0,0.00027397,2]
[341612704,1731033039242,-500.0,0.00027397,2]
[341612705,1731033039253,-500.0,0.00027397,2]
[341612706,1731033039262,-510.12620958,0.00027397,2]
[341612707,1731033039272,-500.0,0.00027397,2]
[341612708,1731033039283,-500.0,0.00027397,2]
[341612709,1731033039294,-500.0,0.00027397,2]
[341612710,1731033039304,-500.0,0.00027397,2]
[341612711,1731033039314,-505.16870385,0.00027397,2]
[341612712,1731033039326,-500.0,0.00027397,2]
[341612713,1731033039338,-507.68873994,0.00027397,2]
[341612714,1731033039349,-691.02,0.00027397,2]
[341612715,1731033039360,-500.0,0.00027397,2]
[341612716,1731033039371,-500.0,0.00027397,2]
[341612717,1731033039380,-695.1,0.00027397,2]
[341612718,1731033039390,-500.0,0.00027397,2]
[341612719,1731033039400,-500.0,0.00027397,2]
[341612720,1731033039411,-153.100711,0.00027397,7]
[341612721,1731033039420,-500.0,0.00027397,2]
[341612722,1731033039429,-1303.81,0.00027397,2]
[341612723,1731033039438,-500.0,0.00027397,2]
[341612724,1731033039449,-529.35,0.00027397,2]
[341612725,1731033039458,-500.0,0.00027397,2]
[341612726,1731033039468,-500.0,0.00027397,2]
[341612727,1731033039478,-500.0,0.00027397,2]
[341612728,1731033039487,-548.07459565,0.00027397,2]
[341612729,1731033039498,-512.79282922,0.00027397,2]
[341612730,1731033039508,-3436.57,0.00027397,2]
[341612731,1731033039517,-772.8,0.00027397,2]
[341612732,1731033039527,-500.0,0.00027397,2]
[341612733,1731033039536,-515.31701068,0.00027397,2]
[341612734,1731033039547,-500.0,0.00027397,2]
[341612735,1731033039557,-500.0,0.00027397,2]
[341612736,1731033039566,-269.22090571,0.00027397,2]
[341612737,1731033039576,-592.15,0.00027397,2]
[341612738,1731033039586,-515.23995867,0.00027397,2]
[341612739,1731033039597,-500.0,0.00027397,2]
[341612740,1731033039607,-229.10746106,0.00027397,2]
[341612741,1731033039617,-508.51760351,0.00027397,2]
[341612742,1731033039626,-500.0,0.00027397,2]
[341612743,1731033039636,-513.60033334,0.00027397,2]
[341612744,1731033039646,-151.0,0.00027397,7]
[341612745,1731033039656,-500.0,0.00027397,2]
[341612746,1731033039666,-500.0,0.00027397,2]
[341612747,1731033039676,-238.153143,0.00027397,7]
[341612748,1731033039686,-500.0,0.00027397,2]
[341612749,1731033039695,-500.0,0.00027397,2]
[341612750,1731033039704,-542.10645416,0.00027397,2]
[341612751,1731033039714,-500.0,0.00027397,2]
[341612752,1731033039723,-500.0,0.00027397,2]
[341612753,1731033039733,-500.0,0.00027397,2]
[341612754,1731033039743,-505.56275315,0.00027397,2]
[341612755,1731033039754,-510.24060737,0.00027397,2]
[341612756,1731033039764,-167.488082,0.00027397,2]
[341612757,1731033039774,-500.0,0.00027397,2]
[341612758,1731033039785,-500.0,0.00027397,2]
[341612759,1731033039795,-1060.62,0.00027397,2]
[341612760,1731033039804,-504.02843812,0.00027397,2]
[341612761,1731033039813,-500.0,0.00027397,2]
[341612762,1731033039823,-500.99981545,0.00027397,2]
[341612763,1731033039833,-500.0,0.00027397,2]
[341612764,1731033039843,-1101.06,0.00027397,2]
[341612765,1731033039853,-500.0,0.00027397,2]
[341612766,1731033039862,-509.10672678,0.00027397,2]
[341612767,1731033039872,-535.47,0.00027397,2]
[341612768,1731033039882,-151.0,0.00027397,7]
[341612769,1731033039891,-151.0,0.00027397,7]
[341612770,1731033039901,-151.0,0.00027397,7]
[341612771,1731033039911,-500.0,0.00027397,2]
[341612772,1731033039921,-151.0,0.00027397,7]
[341612773,1731033039931,-500.0,0.00027397,2]
[341612774,1731033039942,-289.646195,0.00027397,7]
[341612775,1731033039952,-708.66,0.00027397,2]
[341612776,1731033039963,-517.11,0.00027397,2]
[341612779,1731033039973,-500.0,0.00027397,2]
[341612781,1731033039982,-506.67589946,0.00027397,2]
[341612783,1731033039991,-518.64376469,0.00027397,2]
[341612785,1731033040007,-500.0,0.00027397,2]
[341612787,1731033040016,-500.0,0.00027397,2]
[341612789,1731033040025,-500.0,0.00027397,2]
[341612791,1731033040035,-512.86551533,0.00027397,2]
[341612793,1731033040045,-607.85,0.00027397,2]
[341612796,1731033040054,-500.0,0.00027397,2]
[341612798,1731033040063,-161.884909,0.00027397,2]
[341612800,1731033040074,-500.0,0.00027397,2]
[341612802,1731033040086,-525.60207278,0.00027397,2]
[341612804,1731033040095,-500.0,0.00027397,2]
[341612807,1731033040105,-513.94134258,0.00027397,2]
[341612809,1731033040115,-650.74,0.00027397,2]
[341612811,1731033040125,-416.87928433,0.00027397,2]
[341612813,1731033040134,-500.0,0.00027397,2]
[341612815,1731033040143,-500.0,0.00027397,2]
[341612817,1731033040153,-500.0,0.00027397,2]
[341612818,1731033040232,-510.67280419,0.00027397,2]
[341612819,1731033040242,-500.0,0.00027397,2]
[341612820,1731033040252,-500.0,0.00027397,2]
[341612821,1731033040261,-838.8,0.00027397,2]
[341612822,1731033040271,-500.0,0.00027397,2]
[341612823,1731033040281,-244.69,0.00027397,2]
[341612824,1731033040290,-500.0,0.00027397,2]
[341612825,1731033040301,-500.0,0.00027397,2]
[341612826,1731033040311,-873.56,0.00027397,2]
[341612827,1731033040321,-500.0,0.00027397,2]
[341612828,1731033040330,-500.0,0.00027397,2]
[341612829,1731033040339,-500.0,0.00027397,2]
[341612830,1731033040348,-500.0,0.00027397,2]
[341612831,1731033040358,-500.0,0.00027397,2]
[341612832,1731033040367,-573.66,0.00027397,2]
[341612833,1731033040376,-500.0,0.00027397,2]
[341612834,1731033040386,-500.0,0.00027397,2]
[341612835,1731033040397,-500.0,0.00027397,2]
[341612836,1731033040407,-542.42986785,0.00027397,2]
[341612837,1731033040416,-500.0,0.00027397,2]
[341612838,1731033040425,-500.0,0.00027397,2]
[341612839,1731033040434,-500.0,0.00027397,2]
[341612840,1731033040444,-507.41192024,0.00027397,2]
[341612841,1731033040453,-500.0,0.00027397,2]
[341612842,1731033040462,-556.26,0.00027397,2]
[341612843,1731033040472,-500.0,0.00027397,2]
[341612844,1731033040481,-501.83783652,0.00027397,2]
[341612845,1731033040490,-538.95735923,0.00027397,2]
[341612846,1731033040501,-2036.2251682,0.00027397,2]
[341612847,1731033040511,-603.76651797,0.00027397,2]
[341612848,1731033040520,-500.0,0.00027397,2]
[341612849,1731033040529,-507.77378796,0.00027397,2]
[341612850,1731033040539,-569.7805566,0.00027397,2]
[341612851,1731033040548,-500.0,0.00027397,2]
[341612852,1731033040557,-719.39,0.00027397,2]
[341612853,1731033040566,-587.91011895,0.00027397,2]
[341612854,1731033040575,-355.050528,0.00027397,7]
[341612855,1731033040585,-355.050528,0.00027397,7]
[341612856,1731033040594,-355.050528,0.00027397,7]
[341612857,1731033040604,-512.19068844,0.00027397,2]
[341612858,1731033040613,-355.050528,0.00027397,7]
[341612859,1731033040622,-355.050528,0.00027397,7]
[341612860,1731033040631,-355.050528,0.00027397,7]
[341612861,1731033040640,-500.0,0.00027397,2]
[341612862,1731033040649,-355.050528,0.00027397,7]
[341612863,1731033040659,-355.050528,0.00027397,7]
[341612864,1731033040668,-1074.04,0.00027397,2]
[341612865,1731033040678,-355.050528,0.00027397,7]
[341612866,1731033040687,-629.06053495,0.00027397,2]
[341612867,1731033040697,-355.050528,0.00027397,7]
[341612868,1731033040706,-506.4775141,0.00027397,2]
[341612869,1731033040716,-355.050528,0.00027397,7]
[341612870,1731033040726,-355.050528,0.00027397,7]
[341612871,1731033040735,-542.92,0.00027397,2]
[341612872,1731033040744,-355.050528,0.00027397,7]
[341612873,1731033040755,-355.050528,0.00027397,7]
[341612874,1731033040764,-500.0,0.00027397,2]
[341612875,1731033040774,-355.050528,0.00027397,7]
[341612876,1731033040783,-566.47,0.00027397,2]
[341612877,1731033040792,-500.0,0.00027397,2]
[341612878,1731033040802,-355.050528,0.00027397,7]
[341612879,1731033040813,-355.050528,0.00027397,7]
[341612880,1731033040824,-500.0,0.00027397,2]
[341612881,1731033040834,-355.050528,0.00027397,7]
[341612882,1731033040843,-514.18074299,0.00027397,2]
[341612883,1731033040852,-505.65298219,0.00027397,2]
[341612884,1731033040862,-528.52017242,0.00027397,2]
[341612885,1731033040872,-500.0,0.00027397,2]
[341612886,1731033040881,-500.0,0.00027397,2]
[341612887,1731033040891,-622.22,0.00027397,2]
[341612888,1731033040899,-507.53666932,0.00027397,2]
[341612889,1731033040909,-500.0,0.00027397,2]
[341612890,1731033040918,-527.12489174,0.00027397,2]
[341612891,1731033040927,-520.8921489,0.00027397,2]
[341612892,1731033040936,-500.0,0.00027397,2]
[341612893,1731033040945,-500.0,0.00027397,2]
[341612894,1731033040954,-622.18,0.00027397,2]
[341612895,1731033040963,-508.0486374,0.00027397,2]
[341612896,1731033040972,-500.0,0.00027397,2]
[341612897,1731033040981,-741.87,0.00027397,2]
[341612898,1731033040990,-505.65379433,0.00027397,2]
[341612899,1731033040999,-500.0,0.00027397,2]
[341612900,1731033041010,-500.0,0.00027397,2]
[341612901,1731033041019,-500.0,0.00027397,2]
[341612902,1731033041030,-500.0,0.00027397,2]
[341612903,1731033041040,-500.0,0.00027397,2]
[341612904,1731033041051,-500.0,0.00027397,2]
[341612905,1731033041061,-500.0,0.00027397,2]
[341612906,1731033041070,-619.56101886,0.00027397,2]
[341612907,1731033041080,-197.750025,0.00027397,7]
[341612908,1731033041091,-197.750025,0.00027397,7]
[341612909,1731033041099,-197.750025,0.00027397,7]
[341612910,1731033041108,-518.80961791,0.00027397,2]
[341612911,1731033041117,-197.750025,0.00027397,7]
[341612912,1731033041126,-197.750025,0.00027397,7]
[341612913,1731033041135,-197.750025,0.00027397,7]
[341612914,1731033041143,-500.0,0.00027397,2]
[341612915,1731033041153,-197.750025,0.00027397,7]
[341612916,1731033041163,-197.750025,0.00027397,7]
[341612917,1731033041173,-529.52493737,0.00027397,2]
[341612918,1731033041182,-197.750025,0.00027397,7]
[341612919,1731033041191,-197.750025,0.00027397,7]
[341612920,1731033041200,-197.750025,0.00027397,7]
[341612921,1731033041210,-521.00053064,0.00027397,2]
[341612922,1731033041219,-197.750025,0.00027397,7]
[341612923,1731033041228,-197.750025,0.00027397,7]
[341612924,1731033041237,-197.750025,0.00027397,7]
[341612925,1731033041247,-197.750022,0.00027397,7]
[341612926,1731033041263,-500.0,0.00027397,2]
[341612927,1731033041273,-500.0,0.00027397,2]
[341612928,1731033041282,-500.0,0.00027397,2]
[341612929,1731033041291,-842.34,0.00027397,2]
[341612930,1731033041300,-516.12288249,0.00027397,2]
[341612931,1731033041308,-151.0,0.00027397,7]
[341612932,1731033041318,-151.0,0.00027397,7]
[341612933,1731033041327,-508.18323564,0.00027397,2]
[341612934,1731033041336,-151.0,0.00027397,7]
[341612935,1731033041345,-500.0,0.00027397,2]
[341612936,1731033041354,-151.0,0.00027397,7]
[341612937,1731033041363,-151.0,0.00027397,7]
[341612938,1731033041372,-264.387991,0.00027397,7]
[341612939,1731033041381,-500.0,0.00027397,2]
[341612940,1731033041391,-500.0,0.00027397,2]
[341612941,1731033041400,-505.26723964,0.00027397,2]
[341612942,1731033041409,-509.86344538,0.00027397,2]
[341612943,1731033041420,-500.0,0.00027397,2]
[341612944,1731033041429,-500.0,0.00027397,2]
[341612945,1731033041438,-500.0,0.00027397,2]
[341612946,1731033041447,-622.59,0.00027397,2]
[341612947,1731033041456,-508.56298656,0.00027397,2]
[341612948,1731033041466,-500.0,0.00027397,2]
[341612949,1731033041476,-500.0,0.00027397,2]
[341612950,1731033041486,-620.72185285,0.00027397,2]
[341612951,1731033041495,-500.0,0.00027397,2]
[341612952,1731033041506,-654.55,0.00027397,2]
[341612953,1731033041515,-635.23,0.00027397,2]
[341612954,1731033041524,-500.0,0.00027397,2]
[341612955,1731033041534,-505.90716239,0.00027397,2]
[341612956,1731033041543,-1041.14,0.00027397,2]
[341612957,1731033041554,-500.0,0.00027397,2]
[341612958,1731033041564,-518.07367253,0.00027397,2]
[341612959,1731033041574,-500.0,0.00027397,2]
[341612960,1731033041584,-5675.69,0.00027397,2]
[341612961,1731033041594,-500.0,0.00027397,2]
[341612962,1731033041605,-500.0,0.00027397,2]
[341612963,1731033041615,-589.93,0.00027397,2]
[341612964,1731033041624,-500.0,0.00027397,2]
[341612965,1731033041635,-500.0,0.00027397,2]
[341612966,1731033041645,-500.0,0.00027397,2]
[341612967,1731033041654,-597.6,0.00027397,2]
[341612968,1731033041665,-500.0,0.00027397,2]
[341612969,1731033041675,-553.90318878,0.00027397,2]
[341612970,1731033041686,-309.57981853,0.00027397,2]
[341612971,1731033041695,-608.75,0.00027397,2]
[341612972,1731033041704,-521.59985503,0.00027397,2]
[341612973,1731033041715,-500.0,0.00027397,2]
[341612974,1731033041726,-500.0,0.00027397,2]
[341612975,1731033041736,-535.54649982,0.00027397,2]
[341612976,1731033041746,-500.0,0.00027397,2]
[341612977,1731033041756,-500.0,0.00027397,2]
[341612978,1731033041765,-500.0,0.00027397,2]
[341612979,1731033041775,-2045.39,0.00027397,2]
[341612980,1731033041784,-151.0,0.00027397,7]
[341612981,1731033041793,-500.0,0.00027397,2]
[341612982,1731033041802,-151.0,0.00027397,7]
[341612983,1731033041811,-151.0,0.00027397,7]
[341612984,1731033041820,-249.971962,0.00027397,7]
[341612985,1731033041829,-1099.11277841,0.00027397,10]
[341612986,1731033041839,-500.0,0.00027397,2]
[341612987,1731033041847,-515.15025632,0.00027397,2]
[341612988,1731033041857,-538.56622141,0.00027397,2]
[341612989,1731033041866,-524.25109046,0.00027397,2]
[341612990,1731033041875,-500.0,0.00027397,2]
[341612991,1731033041885,-500.0,0.00027397,2]
[341612992,1731033041895,-648.9,0.00027397,2]
[341612993,1731033041906,-536.34,0.00027397,2]
[341612994,1731033041915,-500.0,0.00027397,2]
[341612995,1731033041927,-500.0,0.00027397,2]
[341612996,1731033041938,-500.0,0.00027397,2]
[341612997,1731033041948,-500.0,0.00027397,2]
[341612998,1731033041959,-510.34024394,0.00027397,2]
[341612999,1731033041970,-500.0,0.00027397,2]
[341613000,1731033041980,-151.0,0.00027397,7]
[341613001,1731033041990,-151.0,0.00027397,7]
[341613002,1731033042003,-151.0,0.00027397,7]
[341613003,1731033042013,-151.770338,0.00027397,7]
[341613004,1731033042022,-500.0,0.00027397,2]
[341613005,1731033042031,-500.0,0.00027397,2]
[341613006,1731033042042,-541.14643838,0.00027397,2]
[341613007,1731033042051,-500.0,0.00027397,2]
[341613008,1731033042060,-500.0,0.00027397,2]
[341613009,1731033042070,-578.89,0.00027397,2]
[341613010,1731033042082,-500.0,0.00027397,2]
[341613011,1731033042092,-505.38889549,0.00027397,2]
[341613012,1731033042104,-1366.28,0.00027397,2]
[341613013,1731033042115,-500.0,0.00027397,2]
[341613014,1731033042125,-500.0,0.00027397,2]
[341613015,1731033042134,-500.0,0.00027397,2]
[341613016,1731033042143,-514.52,0.00027397,2]
[341613017,1731033042154,-1746.92,0.00027397,2]
[341613018,1731033042165,-500.0,0.00027397,2]
[341613019,1731033042175,-500.0,0.00027397,2]
[341613020,1731033042184,-500.0,0.00027397,2]
[341613021,1731033042194,-525.07,0.00027397,2]
[341613022,1731033042203,-503.84991224,0.00027397,2]
[341613023,1731033042212,-151.0,0.00027397,7]
[341613024,1731033042222,-151.0,0.00027397,7]
[341613025,1731033042231,-452.93444148,0.00027397,2]
[341613026,1731033042240,-151.0,0.00027397,7]
[341613027,1731033042250,-151.0,0.00027397,7]
[341613028,1731033042259,-151.0,0.00027397,7]
[341613029,1731033042269,-151.0,0.00027397,7]
[341613030,1731033042279,-151.0,0.00027397,7]
[341613031,1731033042289,-151.0,0.00027397,7]
[341613032,1731033042299,-151.0,0.00027397,7]
[341613033,1731033042308,-503.64513479,0.00027397,2]
[341613034,1731033042317,-151.0,0.00027397,7]
[341613035,1731033042327,-234.77491,0.00027397,7]
[341613036,1731033042336,-757.94,0.00027397,2]
[341613037,1731033042346,-202.61251,0.00027397,7]
[341613038,1731033042354,-500.0,0.00027397,2]
[341613039,1731033042363,-500.0,0.00027397,2]
[341613040,1731033042372,-500.0,0.00027397,2]
[341613041,1731033042382,-503.58144663,0.00027397,2]
[341613042,1731033042391,-660.01,0.00027397,2]
[341613043,1731033042400,-986.32,0.00027397,2]
[341613044,1731033042410,-535.59,0.00027397,2]
[341613045,1731033042419,-669.79,0.00027397,2]
[341613046,1731033042429,-914.15,0.00027397,2]
[341613047,1731033042438,-504.32805151,0.00027397,2]
[341613048,1731033042447,-500.0,0.00027397,2]
[341613049,1731033042458,-500.0,0.00027397,2]
[341613050,1731033042467,-500.0,0.00027397,2]
[341613051,1731033042476,-1243.25,0.00027397,2]
[341613052,1731033042485,-500.0,0.00027397,2]
[341613053,1731033042495,-505.16325967,0.00027397,2]
[341613054,1731033042505,-500.0,0.00027397,2]
[341613055,1731033042515,-500.0,0.00027397,2]
[341613056,1731033042525,-500.0,0.00027397,2]
[341613057,1731033042536,-504.15950916,0.00027397,2]
[341613058,1731033042545,-3001.56,0.00027397,2]
[341613059,1731033042554,-507.35113449,0.00027397,2]
[341613060,1731033042564,-500.0,0.00027397,2]
[341613061,1731033042573,-500.0,0.00027397,2]
[341613062,1731033042582,-554.87903405,0.00027397,2]
[341613063,1731033042592,-500.0,0.00027397,2]
[341613064,1731033042602,-505.21442095,0.00027397,2]
[341613065,1731033042610,-500.0,0.00027397,2]
[341613066,1731033042620,-953.65,0.00027397,2]
[341613067,1731033042629,-1321.69,0.00027397,2]
[341613068,1731033042638,-549.92595784,0.00027397,2]
[341613069,1731033042648,-500.0,0.00027397,2]
[341613070,1731033042658,-505.6510436,0.00027397,2]
[341613071,1731033042667,-500.0,0.00027397,2]
[341613072,1731033042676,-500.0,0.00027397,2]
[341613073,1731033042686,-500.0,0.00027397,2]
[341613074,1731033042695,-500.0,0.00027397,2]
[341613075,1731033042705,-576.42,0.00027397,2]
[341613076,1731033042715,-500.0,0.00027397,2]
[341613077,1731033042724,-1102.68,0.00027397,2]
[341613078,1731033042733,-589.53,0.00027397,2]
[341613079,1731033042743,-577.91,0.00027397,2]
[341613080,1731033042754,-502.94006076,0.00027397,2]
[341613081,1731033042763,-500.0,0.00027397,2]
[341613082,1731033042772,-7500.0,0.00027397,2]
[341613083,1731033042781,-500.0,0.00027397,2]
[341613084,1731033042791,-1375.25646859,0.00027397,2]
[341613085,1731033042800,-509.19093593,0.00027397,2]
[341613086,1731033042809,-502.90275595,0.00027397,2]
[341613087,1731033042820,-506.53036657,0.00027397,2]
[341613088,1731033042831,-536.95,0.00027397,2]
[341613089,1731033042840,-594.84,0.00027397,2]
[341613090,1731033042849,-908.03,0.00027397,2]